bitfinex-derivatives/quotes_BTCF0:USTF0_20230901
["timestamp","ask_amount","ask_price","bid_price","bid_amount"]
[1693566451683,3.61863543,26019.0,26018.0,0.41636745]
[1693566451898,3.61863543,26019.0,26018.0,0.37795745]
[1693566452103,3.61863543,26019.0,26018.0,0.288342]
[1693566452300,3.61863543,26019.0,26018.0,0.14417]
[1693566453095,3.61863543,26019.0,26018.0,0.10576]
[1693566453297,3.4224199,26019.0,26018.0,0.10576]
[1693566454189,3.4224199,26019.0,26018.0,0.06735]
[1693566454799,3.3864199,26019.0,26018.0,0.06735]
[1693566455093,3.4224199,26019.0,26018.0,0.144171]
[1693566455297,3.52813543,26019.0,26017.0,0.432528]
[1693566455499,0.54031791,26018.0,26017.0,0.432528]
[1693566455797,1.39197691,26018.0,26017.0,0.288351]
[1693566456196,1.39197691,26018.0,26017.0,0.249941]
[1693566456389,3.6070779,26018.0,26017.0,0.249941]
[1693566456590,3.6070779,26018.0,26017.0,0.230951]
[1693566456791,3.6440779,26018.0,26017.0,0.230951]
[1693566457092,3.6440779,26018.0,26017.0,0.048365]
[1693566457293,3.91229343,26018.0,26017.0,0.144175]
[1693566457487,4.05646643,26018.0,26016.0,0.13240621]
[1693566457693,0.54031791,26017.0,26014.0,0.438785]
[1693566457894,0.54031791,26017.0,26014.0,0.294591]
[1693566457895,0.4153,26015.0,26014.0,0.294591]
[1693566458197,1.24116834,26015.0,26014.0,0.144191]
[1693566458996,0.97288791,26015.0,26014.0,0.144191]
[1693566459300,1.00888791,26015.0,26014.0,0.105781]
[1693566459700,0.97288791,26015.0,26014.0,0.105781]
[1693566459891,1.00888791,26015.0,26014.0,0.105781]
[1693566460091,1.00888791,26015.0,26013.0,0.288398]
[1693566460303,0.4153,26014.0,26013.0,0.249988]
[1693566460498,0.70369,26014.0,26013.0,0.249988]
[1693566461001,0.93345669,26014.0,26013.0,0.249988]
[1693566461394,0.93345723,26014.0,26013.0,0.249988]
[1693566461699,1.0198138,26014.0,26013.0,0.249988]
[1693566462605,1.0558138,26014.0,26013.0,0.249988]
[1693566463294,1.0918138,26014.0,26013.0,0.249988]
[1693566463798,1.0918138,26014.0,26012.0,0.295004]
[1693566464109,0.85934923,26013.0,26012.0,0.13182]
[1693566464404,0.85934923,26013.0,26010.0,0.596349]
[1693566464405,1.43615323,26013.0,26010.0,0.596349]
[1693566464605,0.64489336,26011.0,26010.0,0.432649]
[1693566464802,0.93331736,26011.0,26010.0,0.432649]
[1693566465102,1.07752936,26011.0,26010.0,0.288432]
[1693566465906,0.847936,26011.0,26010.0,0.288432]
[1693566466102,0.883936,26011.0,26010.0,0.288432]
[1693566466406,0.883936,26011.0,26010.0,0.144216]
[1693566466602,0.4153,26010.0,26009.0,0.288443]
[1693566466808,1.119034,26010.0,26009.0,0.288443]
[1693566467910,1.299251,26010.0,26009.0,0.288443]
[1693566468500,1.335251,26010.0,26009.0,0.288443]
[1693566480216,1.335251,26010.0,26009.0,0.288444]
[1693566481716,1.335251,26010.0,26008.0,0.443951]
[1693566482019,0.859946,26009.0,26008.0,0.443951]
[1693566482517,0.859946,26009.0,26008.0,0.588179]
[1693566483813,0.895946,26009.0,26008.0,0.588179]
[1693566485209,0.931946,26009.0,26008.0,0.588179]
[1693566488711,0.931946,26009.0,26004.0,0.144248]
[1693566488712,1.39805614,26009.0,26004.0,0.144248]
[1693566488912,0.4153,26006.0,26005.0,0.125262]
[1693566489111,0.4153,26006.0,26004.0,0.454797]
[1693566489112,1.09716774,26006.0,26004.0,0.432744]
[1693566489313,0.4153,26005.0,26004.0,0.288495]
[1693566489621,0.93293774,26005.0,26004.0,0.288495]
[1693566489824,0.70379,26005.0,26004.0,0.269505]
[1693566490222,0.848035,26005.0,26004.0,0.269505]
[1693566490631,0.848035,26005.0,26004.0,0.125258]
[1693566490823,1.07718274,26005.0,26004.0,0.125258]
[1693566491719,0.848035,26005.0,26004.0,0.125258]
[1693566492224,1.03782561,26005.0,26003.0,0.447908]
[1693566492417,0.64441369,26004.0,26003.0,0.447908]
[1693566492619,1.07716369,26004.0,26003.0,0.447908]
[1693566494031,1.11316369,26004.0,26003.0,0.447908]
[1693566494333,1.11316369,26004.0,26003.0,0.592163]
[1693566494534,0.96891369,26004.0,26003.0,0.592163]
[1693566496234,1.00491369,26004.0,26003.0,0.592163]
[1693566497836,0.7758,26004.0,26003.0,0.592163]
[1693566499133,0.91875076,26004.0,26003.0,0.592163]
[1693566499732,1.00507607,26004.0,26003.0,0.592163]
[1693566500026,0.7758,26004.0,26003.0,0.592163]
[1693566500843,0.91406554,26004.0,26003.0,0.592163]
[1693566501643,1.00514931,26004.0,26003.0,0.592163]
[1693566505246,1.14939931,26004.0,26003.0,0.288508]
[1693566508943,1.14939931,26004.0,26003.0,0.144253]
[1693566510248,1.14939931,26004.0,26003.0,0.144251]
[1693566510643,0.92005,26004.0,26003.0,0.144251]
[1693566513132,1.14939931,26004.0,26002.0,0.588076]
[1693566513339,0.4153,26003.0,26002.0,0.432776]
[1693566513538,0.86071,26003.0,26002.0,0.432776]
[1693566514647,1.004965,26003.0,26002.0,0.432776]
[1693566515047,1.040965,26003.0,26002.0,0.432776]
[1693566515948,1.076965,26003.0,26002.0,0.432776]
[1693566518938,1.076965,26003.0,26002.0,0.144258]
[1693566519144,1.30631431,26003.0,26002.0,0.144258]
[1693566521752,1.30631431,26003.0,26002.0,0.28852]
[1693566522052,1.076965,26003.0,26002.0,0.28852]
[1693566527455,1.076965,26003.0,26002.0,0.144258]
[1693566531656,1.076965,26003.0,26001.0,0.432791]
[1693566531960,0.4153,26002.0,26001.0,0.288526]
[1693566532160,0.703822,26002.0,26001.0,0.52903591]
[1693566533268,0.848083,26002.0,26001.0,0.52903591]
[1693566533953,0.884083,26002.0,26001.0,0.52903591]
[1693566534562,0.920083,26002.0,26001.0,0.52903591]
[1693566536566,0.920083,26002.0,26001.0,0.53437882]
[1693566539066,0.920083,26002.0,26001.0,0.29386891]
[1693566539469,1.064345,26002.0,26001.0,0.00534291]
[1693566540264,1.064345,26002.0,26001.0,0.00436449]
[1693566540569,1.29436125,26002.0,26001.0,0.00436449]
[1693566540964,1.064345,26002.0,26001.0,0.00436449]
[1693566543668,1.064345,26002.0,25999.0,0.446051]
[1693566543669,0.432819,26000.0,25999.0,0.301775]
[1693566543871,0.848119,26000.0,25999.0,0.39018195]
[1693566544070,1.012419,26000.0,25999.0,0.39018195]
[1693566544463,1.012419,26000.0,25999.0,0.37018195]
[1693566544863,1.032419,26000.0,25999.0,0.37018195]
[1693566545265,1.060419,26000.0,25999.0,0.37018195]
[1693566546372,1.060419,26000.0,25999.0,0.24052246]
[1693566547174,1.060419,26000.0,25999.0,0.38480146]
[1693566549574,1.060419,26000.0,25999.0,0.24052246]
[1693566554377,1.204692,26000.0,25998.0,0.288562]
[1693566554579,0.848137,25999.0,25998.0,0.288562]
[1693566554777,0.848137,25999.0,25998.0,0.52909778]
[1693566557385,0.863137,25999.0,25998.0,0.52909778]
[1693566557777,0.869137,25999.0,25998.0,0.52909778]
[1693566559388,0.4363,25999.0,25998.0,0.87421416]
[1693566560186,0.4363,25999.0,25998.0,0.92890323]
[1693566560578,0.4363,25999.0,25998.0,0.87421416]
[1693566561991,0.4363,25999.0,25998.0,0.81266578]
[1693566562286,0.4363,25999.0,25998.0,0.86921416]
[1693566562981,0.4363,25999.0,25998.0,0.92390323]
[1693566563289,0.4363,25999.0,25998.0,0.86921416]
[1693566565588,0.4363,25999.0,25998.0,0.92390323]
[1693566565784,0.4363,25999.0,25998.0,0.86921416]
[1693566566383,0.46664131,25999.0,25998.0,0.92390323]
[1693566566590,0.46664131,25999.0,25998.0,0.86921416]
[1693566567193,0.46664131,25999.0,25998.0,0.92390323]
[1693566567386,0.46664131,25999.0,25998.0,0.86921416]
[1693566567894,0.89947831,25999.0,25998.0,0.66838178]
[1693566568194,1.05587831,25999.0,25998.0,0.66838178]
[1693566568385,1.05587831,25999.0,25998.0,0.92390323]
[1693566568386,0.62304131,25999.0,25998.0,0.92390323]
[1693566568585,0.46664131,25999.0,25998.0,0.92390323]
[1693566571388,0.46664131,25999.0,25998.0,0.86921416]
[1693566573200,0.61092031,25999.0,25998.0,0.86921416]
[1693566574296,0.61092031,25999.0,25998.0,0.92390323]
[1693566574499,0.61092031,25999.0,25998.0,0.86921416]
[1693566575101,0.61092031,25999.0,25998.0,0.92390323]
[1693566576402,0.61092031,25999.0,25998.0,0.86921416]
[1693566576706,0.61092031,25999.0,25998.0,0.92390323]
[1693566577904,0.61092031,25999.0,25998.0,0.86921416]
[1693566578608,0.61092031,25999.0,25998.0,0.92390323]
[1693566579407,0.61092031,25999.0,25998.0,0.86921416]
[1693566580113,0.61092031,25999.0,25998.0,0.92390323]
[1693566580509,0.61092031,25999.0,25998.0,0.86921416]
[1693566581102,0.61092031,25999.0,25998.0,0.92390323]
[1693566581303,0.61092031,25999.0,25998.0,0.86921416]
[1693566582001,0.61092031,25999.0,25998.0,0.92390323]
[1693566584414,0.61092031,25999.0,25998.0,0.86921416]
[1693566585206,0.61092031,25999.0,25998.0,0.92390323]
[1693566586014,0.61092031,25999.0,25998.0,0.81266578]
[1693566588611,0.61092031,25999.0,25998.0,0.86735485]
[1693566588914,0.61092031,25999.0,25998.0,0.92390323]
[1693566589118,0.61092031,25999.0,25998.0,0.86921416]
[1693566590118,0.61092031,25999.0,25998.0,0.92390323]
[1693566590307,0.61092031,25999.0,25998.0,0.86921416]
[1693566590703,0.61092031,25999.0,25998.0,0.92390323]
[1693566592316,0.61092031,25999.0,25998.0,0.86921416]
[1693566592719,0.75519931,25999.0,25998.0,0.86921416]
[1693566593018,0.75519931,25999.0,25998.0,0.92390323]
[1693566593218,0.75519931,25999.0,25998.0,0.86921416]
[1693566593730,0.75519931,25999.0,25998.0,0.92390323]
[1693566594119,0.75519931,25999.0,25998.0,0.86921416]
[1693566595323,0.75519931,25999.0,25998.0,0.92390323]
[1693566595723,0.75519931,25999.0,25998.0,0.86921416]
[1693566596420,0.75519931,25999.0,25998.0,0.92390323]
[1693566596616,0.75519931,25999.0,25998.0,0.86921416]
[1693566597922,0.75519931,25999.0,25998.0,0.81266578]
[1693566598624,0.75519931,25999.0,25998.0,0.86735485]
[1693566598917,0.75519931,25999.0,25998.0,0.81266578]
[1693566599623,0.75519931,25999.0,25998.0,0.66838178]
[1693566600919,0.75519931,25999.0,25998.0,0.81266578]
[1693566602231,0.46664131,25999.0,25998.0,0.86921416]
[1693566602418,0.46664131,25999.0,25998.0,0.88921416]
[1693566602618,0.46664131,25999.0,25998.0,0.94390323]
[1693566605122,0.46664131,25999.0,25998.0,0.92390323]
[1693566609533,0.61092031,25999.0,25998.0,0.66838178]
[1693566609737,0.92332831,25999.0,25998.0,0.66838178]
[1693566609936,0.92332831,25999.0,25998.0,0.427846]
[1693566612033,0.94432831,25999.0,25998.0,0.427846]
[1693566612632,0.92432831,25999.0,25998.0,0.427846]
[1693566612934,0.95132831,25999.0,25998.0,0.42978652]
[1693566614036,1.18134456,25999.0,25998.0,0.59159629]
[1693566614334,1.18134456,25999.0,25998.0,0.35105215]
[1693566614636,0.95132831,25999.0,25998.0,0.59159952]
[1693566615834,0.95132831,25999.0,25998.0,0.35105215]
[1693566616037,0.95132831,25999.0,25998.0,0.40574122]
[1693566616931,0.95132831,25999.0,25998.0,0.40760053]
[1693566617146,0.95132831,25999.0,25998.0,0.64814419]
[1693566617340,0.95132831,25999.0,25998.0,0.40760053]
[1693566617838,0.95132831,25999.0,25998.0,0.64814416]
[1693566618730,0.95132831,25999.0,25998.0,0.59159578]
[1693566619541,0.95132831,25999.0,25998.0,0.64814416]
[1693566622341,0.95132831,25999.0,25998.0,0.59159578]
[1693566625441,0.95132831,25999.0,25998.0,0.64628485]
[1693566625642,0.95132831,25999.0,25998.0,0.64814416]
[1693566627443,0.95132831,25999.0,25998.0,0.59159578]
[1693566628845,0.95132831,25999.0,25998.0,0.35105215]
[1693566630444,0.95132831,25999.0,25998.0,0.40760053]
[1693566631341,0.95132831,25999.0,25998.0,0.6481493]
[1693566631642,1.18134456,25999.0,25998.0,0.6481493]
[1693566634345,1.17749456,25999.0,25998.0,0.6481493]
[1693566636749,0.94747831,25999.0,25998.0,0.6481493]
[1693566637741,1.17767107,25999.0,25998.0,0.6481493]
[1693566637945,1.04037621,25999.0,25998.0,0.6481493]
[1693566639765,0.94747831,25999.0,25998.0,0.6481493]
[1693566644166,0.94747831,25999.0,25998.0,0.40760053]
[1693566648574,0.94747831,25999.0,25998.0,0.35105215]
[1693566649576,0.94747831,25999.0,25998.0,0.40460238]
[1693566657979,0.96747831,25999.0,25998.0,0.40460238]
[1693566658179,0.94747831,25999.0,25998.0,0.40460238]
[1693566659392,0.94747831,25999.0,25998.0,0.64516208]
[1693566660975,0.94747831,25999.0,25998.0,0.70171046]
[1693566662692,1.17769868,25999.0,25998.0,0.70171046]
[1693566662990,1.17769868,25999.0,25998.0,0.64516208]
[1693566663787,1.17769868,25999.0,25998.0,0.70171046]
[1693566666493,1.17769868,25999.0,25998.0,0.40460238]
[1693566668684,1.17769868,25999.0,25998.0,0.46115076]
[1693566670399,1.17769868,25999.0,25998.0,0.51583983]
[1693566670698,1.17769868,25999.0,25998.0,0.46115076]
[1693566673094,1.33919868,25999.0,25998.0,0.46115076]
[1693566673603,1.33919868,25999.0,25998.0,0.40460238]
[1693566673899,1.33919868,25999.0,25998.0,0.54888638]
[1693566674703,1.33919868,25999.0,25998.0,0.7894437]
[1693566675301,1.33919868,25999.0,25998.0,0.6451597]
[1693566677401,1.10897831,25999.0,25998.0,0.6451597]
[1693566677799,1.33928281,25999.0,25998.0,0.6451597]
[1693566678603,1.33928281,25999.0,25998.0,0.7894437]
[1693566679402,1.10897831,25999.0,25998.0,0.84599208]
[1693566680398,1.1911807,25999.0,25998.0,0.84599208]
[1693566681097,1.1911807,25999.0,25998.0,0.70170808]
[1693566681306,1.1911807,25999.0,25998.0,0.6451597]
[1693566681631,1.1911807,25999.0,25998.0,0.40460238]
[1693566689810,1.1911807,25999.0,25998.0,0.6451702]
[1693566697202,1.1911807,25999.0,25998.0,0.51583983]
[1693566697408,1.1911807,25999.0,25998.0,0.46115076]
[1693566699021,1.1911807,25999.0,25998.0,0.40460238]
[1693566704221,1.1911807,25999.0,25998.0,0.46115076]
[1693566705824,1.1911807,25999.0,25998.0,0.40460238]
[1693566708020,1.33929584,25999.0,25998.0,0.40460238]
[1693566710034,1.10897831,25999.0,25998.0,0.40460238]
[1693566712438,1.10897831,25999.0,25998.0,0.64516374]
[1693566717440,1.10897831,25999.0,25998.0,0.70171212]
[1693566718741,1.10897831,25999.0,25998.0,0.64516374]
[1693566719445,1.10897831,25999.0,25998.0,0.40460238]
[1693566720942,0.96469931,25999.0,25998.0,0.40460238]
[1693566726646,0.96469931,25999.0,25998.0,0.64516339]
[1693566733453,1.10897831,25999.0,25998.0,0.64516339]
[1693566734047,1.34318733,25999.0,25998.0,0.50087939]
[1693566734840,1.34318733,25999.0,25998.0,0.26031838]
[1693566736448,0.00385,25998.0,25996.0,0.144295]
[1693566736752,1.2511704,25997.0,25995.0,0.288595]
[1693566736952,0.848185,25996.0,25995.0,0.432894]
[1693566738853,0.876185,25996.0,25995.0,0.432894]
[1693566739255,0.896185,25996.0,25995.0,0.432894]
[1693566741948,0.896185,25996.0,25995.0,0.67347917]
[1693566748760,0.92677858,25996.0,25995.0,0.67347917]
[1693566749962,0.92677858,25996.0,25995.0,0.432894]
[1693566751558,0.94677858,25996.0,25995.0,0.432894]
[1693566752065,0.92677858,25996.0,25995.0,0.432894]
[1693566753865,0.92677858,25996.0,25995.0,0.288595]
[1693566754062,0.92677858,25996.0,25995.0,0.144297]
[1693566754262,1.07107358,25996.0,25994.0,0.432917]
[1693566754463,0.1639,25995.0,25994.0,0.432917]
[1693566754662,0.596803,25995.0,25994.0,0.432917]
[1693566756263,0.602803,25995.0,25994.0,0.432917]
[1693566756964,1.20981876,25995.0,25994.0,0.432917]
[1693566757169,1.22481876,25995.0,25994.0,0.67351292]
[1693566758062,1.033103,25995.0,25994.0,0.67351292]
[1693566758773,0.888802,25995.0,25994.0,0.87250799]
[1693566758969,0.888802,25995.0,25994.0,0.81781892]
[1693566759172,1.0805117,25995.0,25994.0,0.81781892]
[1693566764775,1.0805117,25995.0,25994.0,0.577223]
[1693566765074,1.033103,25995.0,25994.0,0.81782123]
[1693566765377,1.033103,25995.0,25994.0,0.577223]
[1693566767085,0.888802,25995.0,25994.0,0.577223]
[1693566768672,1.033103,25995.0,25994.0,0.577223]
[1693566778492,1.033103,25995.0,25994.0,0.63377138]
[1693566779379,1.033103,25995.0,25994.0,0.8743695]
[1693566781886,1.033103,25995.0,25994.0,0.81782112]
[1693566784294,1.033103,25995.0,25994.0,0.67351512]
[1693566787695,1.033103,25995.0,25994.0,0.432917]
[1693566793899,1.033103,25995.0,25994.0,0.48946538]
[1693566795103,1.033103,25995.0,25994.0,0.63377238]
[1693566795104,0.744501,25995.0,25994.0,0.63377238]
[1693566795400,0.4363,25995.0,25994.0,0.87436784]
[1693566795595,0.4363,25995.0,25994.0,0.92905691]
[1693566796500,0.6023,25995.0,25994.0,0.92905691]
[1693566797208,0.890902,25995.0,25994.0,0.87436784]
[1693566798005,0.890902,25995.0,25994.0,0.92905691]
[1693566798205,0.890902,25995.0,25994.0,0.87436784]
[1693566798803,0.890902,25995.0,25994.0,0.92905691]
[1693566799204,0.890902,25995.0,25994.0,0.87436784]
[1693566799503,0.890902,25995.0,25994.0,0.92905691]
[1693566800203,0.890902,25995.0,25994.0,0.87436784]
[1693566800705,1.035204,25995.0,25994.0,0.432917]
[1693566801908,1.035204,25995.0,25994.0,0.67352019]
[1693566810220,1.035204,25995.0,25994.0,0.432917]
[1693566817218,1.035204,25995.0,25994.0,0.67352108]
[1693566818116,0.6023,25995.0,25994.0,0.67352108]
[1693566824821,0.6023,25995.0,25994.0,0.87251815]
[1693566825021,0.4363,25995.0,25994.0,0.87251815]
[1693566825227,0.4363,25995.0,25994.0,0.68846245]
[1693566826331,0.4363,25995.0,25994.0,0.577225]
[1693566826526,0.4363,25995.0,25994.0,0.63191407]
[1693566827228,0.4363,25995.0,25994.0,0.432917]
[1693566832435,0.4363,25995.0,25994.0,0.67352114]
[1693566835738,0.4363,25995.0,25994.0,0.73006952]
[1693566836441,0.4363,25995.0,25994.0,0.67352114]
[1693566839744,0.4363,25995.0,25994.0,0.432917]
[1693566840644,0.4363,25995.0,25994.0,0.48760607]
[1693566840843,0.4363,25995.0,25994.0,0.432917]
[1693566841048,0.4363,25995.0,25994.0,0.577225]
[1693566841249,0.021,25995.0,25994.0,1.10376245]
[1693566845652,0.021,25995.0,25994.0,1.12376245]
[1693566845854,0.021,25995.0,25994.0,1.10376245]
[1693566847651,0.21293805,25995.0,25994.0,1.34435092]
[1693566852957,0.21293805,25995.0,25994.0,1.34623612]
[1693566854853,0.021,25995.0,25994.0,1.10564765]
[1693566858958,0.21290498,25995.0,25994.0,1.10564765]
[1693566859256,0.03059358,25996.0,25994.0,1.10564765]
[1693566859558,0.03034131,25999.0,25995.0,0.76710397]
[1693566859761,0.158,26001.0,25998.0,0.4153]
[1693566859959,0.4153,26002.0,26000.0,0.4153]
[1693566860155,0.5733,26002.0,26001.0,0.577076]
[1693566860351,0.4353,26002.0,26001.0,0.63176507]
[1693566860554,0.5933,26002.0,26001.0,0.68831345]
[1693566861156,0.5933,26002.0,26001.0,0.69019865]
[1693566861352,0.66021616,26002.0,26001.0,0.69119865]
[1693566861548,0.64021616,26002.0,26001.0,0.69119865]
[1693566861958,0.67621616,26002.0,26001.0,0.69219865]
[1693566867061,0.26091616,26002.0,26001.0,1.10749865]
[1693566877358,0.26091616,26002.0,26001.0,1.54279865]
[1693566877561,0.00057689,26004.0,26001.0,1.54279865]
[1693566877764,0.15277689,26004.0,26003.0,0.4153]
[1693566878061,0.15277689,26004.0,26003.0,0.992336]
[1693566878266,0.15277689,26004.0,26003.0,1.10545865]
[1693566878863,0.58807689,26004.0,26003.0,0.5789212]
[1693566879464,0.58807689,26004.0,26003.0,0.63361027]
[1693566879864,0.6187585,26004.0,26003.0,0.5789212]
[1693566880266,0.6557585,26004.0,26003.0,0.5819212]
[1693566880659,0.6927585,26004.0,26003.0,0.5849212]
[1693566880858,0.6927585,26004.0,26003.0,0.63961027]
[1693566881363,0.6927585,26004.0,26003.0,0.5849212]
[1693566882263,0.6927585,26004.0,26003.0,0.69615865]
[1693566882461,0.6927585,26004.0,26003.0,0.64146958]
[1693566883664,0.6927585,26004.0,26003.0,0.69615865]
[1693566886970,0.6927585,26004.0,26003.0,1.11145865]
[1693566888169,0.6727585,26004.0,26003.0,1.11145865]
[1693566890078,0.6727585,26004.0,26003.0,1.05676958]
[1693566890469,0.6727585,26004.0,26003.0,1.11145865]
[1693566894672,0.6727585,26004.0,26003.0,1.0002212]
[1693566895074,0.6727585,26004.0,26003.0,1.05491027]
[1693566897978,0.6727585,26004.0,26003.0,0.91065127]
[1693566898172,0.8170115,26004.0,26003.0,0.4231852]
[1693566898473,0.9612645,26004.0,26003.0,0.4231852]
[1693566904375,1.1055175,26004.0,26003.0,0.0078852]
[1693566906879,0.90311752,26004.0,26003.0,0.8559592]
[1693566907270,0.6727585,26004.0,26003.0,0.96719665]
[1693566909080,0.6727585,26004.0,26003.0,0.98719665]
[1693566912276,0.6727585,26004.0,26003.0,0.93250758]
[1693566912476,0.6727585,26004.0,26003.0,0.93062238]
[1693566912676,0.6727585,26004.0,26003.0,0.98817627]
[1693566912985,0.6727585,26004.0,26003.0,0.73268082]
[1693566913185,0.8170115,26004.0,26003.0,0.42416482]
[1693566913783,0.9612645,26004.0,26003.0,0.42416482]
[1693566916988,0.9612645,26004.0,26003.0,0.00886482]
[1693566921979,1.19168714,26004.0,26003.0,0.00886482]
[1693566922580,0.9612645,26004.0,26003.0,0.00886482]
[1693566924589,1.1055175,26004.0,26003.0,0.00886482]
[1693566939597,1.33594014,26004.0,26003.0,0.00886482]
[1693566940998,1.1055175,26004.0,26003.0,0.00886482]
[1693566941299,1.33596267,26004.0,26003.0,0.00886482]
[1693566943904,1.48021567,26004.0,26003.0,0.00886482]
[1693566954023,1.53736797,26004.0,26003.0,0.00886482]
[1693566956128,1.3069228,26004.0,26003.0,0.00886482]
[1693566958321,0.7299108,26004.0,26003.0,0.9134902]
[1693566958626,0.5777108,26004.0,26003.0,0.9134902]
[1693566958819,0.5777108,26004.0,26003.0,0.96817927]
[1693566962238,0.5777108,26004.0,26003.0,1.20869309]
[1693566964045,0.5777108,26004.0,26003.0,1.15400402]
[1693566964229,0.5777108,26004.0,26003.0,0.9134902]
[1693566964526,0.5777108,26004.0,26003.0,0.96817927]
[1693566964728,0.5777108,26004.0,26003.0,0.9134902]
[1693566966426,0.5777108,26004.0,26003.0,0.96817927]
[1693566967034,0.1624108,26004.0,26003.0,0.96817927]
[1693566967836,0.1052585,26004.0,26003.0,1.13243827]
[1693566968136,0.38147481,26008.0,26004.0,0.11123745]
[1693566968325,1.02117481,26010.0,26007.0,0.4153]
[1693566968530,0.23047481,26010.0,26009.0,0.4153]
[1693566968731,0.23047481,26010.0,26009.0,0.95921545]
[1693566969230,0.66990781,26011.0,26009.0,0.95921545]
[1693566969428,0.66990781,26011.0,26010.0,0.11123745]
[1693566969730,1.08520781,26011.0,26010.0,0.40254227]
[1693566970127,1.1159542,26011.0,26010.0,0.40254227]
[1693566970329,0.88547939,26011.0,26010.0,0.40254227]
[1693566970634,0.90547939,26011.0,26010.0,0.40254227]
[1693566971334,1.1359542,26011.0,26010.0,0.40554227]
[1693566972130,1.1669542,26011.0,26010.0,0.40854227]
[1693566972537,1.1359542,26011.0,26010.0,0.40554227]
[1693566972732,1.1669542,26011.0,26010.0,0.40854227]
[1693566973338,1.1699542,26011.0,26010.0,0.40854227]
[1693566973635,0.93947939,26011.0,26010.0,0.40854227]
[1693566974025,1.1699542,26011.0,26010.0,0.40854227]
[1693566974231,0.93947939,26011.0,26010.0,0.40854227]
[1693566975135,0.93947939,26011.0,26010.0,0.55276227]
[1693566975440,0.79526239,26011.0,26010.0,0.55276227]
[1693566975633,0.76426239,26011.0,26010.0,0.54976227]
[1693566975834,0.79526239,26011.0,26010.0,0.55276227]
[1693566976238,0.79526239,26011.0,26010.0,0.4980732]
[1693566976840,0.79526239,26011.0,26010.0,0.55276227]
[1693566977044,0.79526239,26011.0,26010.0,0.96806227]
[1693566977339,0.79526239,26011.0,26010.0,0.9133732]
[1693566977840,0.93947739,26011.0,26010.0,0.9133732]
[1693566978042,0.93947739,26011.0,26010.0,0.85682482]
[1693566980239,0.93947739,26011.0,26010.0,0.9133732]
[1693566980528,0.93947739,26011.0,26010.0,0.71260482]
[1693566980731,1.08369239,26011.0,26010.0,0.71260482]
[1693566982045,1.08369239,26011.0,26010.0,0.7691532]
[1693566983435,1.08369239,26011.0,26010.0,0.82384227]
[1693566983944,1.08369239,26011.0,26010.0,0.7691532]
[1693566984144,1.08369239,26011.0,26010.0,0.82384227]
[1693566984547,1.08369239,26011.0,26010.0,0.7691532]
[1693566984742,1.08369239,26011.0,26010.0,0.82384227]
[1693566985047,1.08369239,26011.0,26010.0,0.7691532]
[1693566985847,1.08369239,26011.0,26010.0,0.82384227]
[1693566986639,1.08369239,26011.0,26010.0,0.7691532]
[1693566987150,1.08369239,26011.0,26010.0,0.3538532]
[1693566988545,1.08369239,26011.0,26010.0,0.40854227]
[1693566988940,1.27522268,26011.0,26010.0,0.40854227]
[1693566989748,1.27522268,26011.0,26010.0,0.3538532]
[1693566990253,1.08369239,26011.0,26010.0,0.4980732]
[1693566991051,1.08369239,26011.0,26010.0,0.55276227]
[1693566991357,0.93947639,26011.0,26010.0,0.55276227]
[1693566992253,0.65104639,26011.0,26010.0,0.55276227]
[1693566992453,0.23574639,26011.0,26010.0,0.96806227]
[1693566998155,0.42727668,26011.0,26010.0,0.96806227]
[1693566999348,0.23574639,26011.0,26010.0,0.96806227]
[1693566999748,0.42727668,26011.0,26010.0,0.96806227]
[1693566999950,0.23574639,26011.0,26010.0,1.11228227]
[1693567000656,0.42727668,26011.0,26010.0,1.11228227]
[1693567001475,0.27627668,26011.0,26010.0,1.11228227]
[1693567004454,0.08474639,26011.0,26010.0,1.11228227]
[1693567004850,0.27642031,26011.0,26010.0,1.11228227]
[1693567005255,0.08474639,26011.0,26010.0,1.11228227]
[1693567007160,0.23744639,26011.0,26010.0,1.11228227]
[1693567007962,0.42912031,26011.0,26010.0,1.11228227]
[1693567008260,0.23744639,26011.0,26010.0,1.11228227]
[1693567008564,0.42912031,26011.0,26010.0,1.11228227]
[1693567009956,0.23744639,26011.0,26010.0,1.11228227]
[1693567011564,0.38166039,26011.0,26010.0,1.11228227]
[1693567012364,0.52587439,26011.0,26010.0,1.11228227]
[1693567013866,0.52587439,26011.0,26010.0,1.0575932]
[1693567014361,0.67008839,26011.0,26010.0,0.71260482]
[1693567014964,0.67008839,26011.0,26010.0,0.7691532]
[1693567016253,0.67008839,26011.0,26010.0,0.82384227]
[1693567016963,1.08538839,26011.0,26010.0,0.3538532]
[1693567017665,1.3153971,26011.0,26010.0,0.3538532]
[1693567020173,1.3153971,26011.0,26010.0,0.40854227]
[1693567020370,1.3153971,26011.0,26010.0,0.3538532]
[1693567022570,1.3153971,26011.0,26010.0,0.40854227]
[1693567022773,1.3153971,26011.0,26010.0,0.3538532]
[1693567027874,1.3153971,26011.0,26010.0,0.40854227]
[1693567028967,1.3153971,26011.0,26010.0,0.3538532]
[1693567029168,1.3153971,26011.0,26010.0,0.40854227]
[1693567029374,1.08538839,26011.0,26010.0,0.3538532]
[1693567029979,1.08538839,26011.0,26010.0,0.40854227]
[1693567030277,1.14106059,26011.0,26010.0,0.3538532]
[1693567030578,1.14106059,26011.0,26010.0,0.40854227]
[1693567031277,1.14106059,26011.0,26010.0,0.55276227]
[1693567032176,1.14106059,26011.0,26010.0,0.55364839]
[1693567035476,1.31585763,26011.0,26010.0,0.55364839]
[1693567036979,1.31585763,26011.0,26010.0,0.96894839]
[1693567037480,1.17164363,26011.0,26010.0,0.96894839]
[1693567039981,1.17164363,26011.0,26010.0,1.2094018]
[1693567042482,1.17164363,26011.0,26010.0,0.96894839]
[1693567043385,0.94117439,26011.0,26010.0,0.96894839]
[1693567045677,0.79696039,26011.0,26010.0,0.96894839]
[1693567047189,0.38166039,26011.0,26010.0,0.96894839]
[1693567047784,0.23744639,26011.0,26010.0,0.96894839]
[1693567047991,0.46796966,26011.0,26010.0,1.11316839]
[1693567050682,0.46796966,26011.0,26010.0,1.35361939]
[1693567053795,0.46796966,26011.0,26010.0,1.20939939]
[1693567055796,0.46796966,26011.0,26010.0,1.35361939]
[1693567055991,0.46796966,26011.0,26010.0,1.20939939]
[1693567056999,0.46796966,26011.0,26010.0,1.35361939]
[1693567057695,0.46796966,26011.0,26010.0,1.11316839]
[1693567058701,0.46796966,26011.0,26010.0,0.96894839]
[1693567060495,0.23744639,26011.0,26010.0,0.96894839]
[1693567065906,0.23744639,26011.0,26010.0,1.20938867]
[1693567067812,0.38166039,26011.0,26010.0,1.20938867]
[1693567069811,0.52587439,26011.0,26010.0,1.20938867]
[1693567070710,0.52587439,26011.0,26010.0,0.96894839]